bitfinex-derivatives/quotes_BTCF0:USTF0_20250630
["timestamp","ask_amount","ask_price","bid_price","bid_amount"]
[1751265417306,0.56522279,108140.0,108130.0,0.30699734]
[1751265417705,1.29346259,108140.0,108130.0,0.005]
[1751265418009,1.33306259,108140.0,108130.0,0.005]
[1751265418811,1.33306259,108140.0,108130.0,0.1529335]
[1751265420111,1.40690113,108140.0,108130.0,0.005]
[1751265420310,1.40690113,108140.0,108130.0,0.1529335]
[1751265421413,1.43031716,108140.0,108130.0,0.1529335]
[1751265424209,2.93031716,108140.0,108130.0,0.1529335]
[1751265424514,1.43031716,108140.0,108130.0,0.1529335]
[1751265425026,2.93031716,108140.0,108130.0,0.1529335]
[1751265426127,2.93031716,108140.0,108130.0,0.005]
[1751265426619,2.93031716,108140.0,108130.0,0.1529335]
[1751265429330,2.93031716,108140.0,108130.0,0.2151335]
[1751265430931,2.91168932,108140.0,108130.0,0.2151335]
[1751265432529,2.91168932,108140.0,108130.0,0.0672]
[1751265433934,2.33136932,108140.0,108130.0,0.0672]
[1751265434135,3.04956932,108140.0,108130.0,0.0672]
[1751265434434,1.54956932,108140.0,108130.0,0.005]
[1751265437241,1.54956932,108140.0,108130.0,0.068]
[1751265439041,1.54956932,108140.0,108130.0,0.2159335]
[1751265439339,1.54236932,108140.0,108130.0,0.2159335]
[1751265440639,1.54116932,108140.0,108130.0,0.2159335]
[1751265443538,1.30238653,108140.0,108130.0,0.2159335]
[1751265443735,1.30238653,108140.0,108130.0,0.32537797]
[1751265443939,1.50580932,108140.0,108130.0,0.32537797]
[1751265444641,1.36820932,108140.0,108130.0,0.32537797]
[1751265444848,1.50556932,108140.0,108130.0,0.32537797]
[1751265446049,0.79176932,108140.0,108130.0,0.32537797]
[1751265446245,1.50548932,108140.0,108130.0,0.32537797]
[1751265446446,1.50548932,108140.0,108130.0,0.2473335]
[1751265446646,1.50548932,108140.0,108130.0,0.32537797]
[1751265446849,1.50548932,108140.0,108130.0,0.2473335]
[1751265447045,1.48187862,108140.0,108130.0,0.2473335]
[1751265447244,1.48187862,108140.0,108130.0,0.068]
[1751265447445,1.55571716,108140.0,108130.0,0.068]
[1751265448950,1.52359716,108140.0,108130.0,0.29397797]
[1751265450739,1.44975862,108140.0,108130.0,0.29397797]
[1751265452551,1.24633583,108140.0,108130.0,0.29397797]
[1751265452752,1.44975862,108140.0,108130.0,0.29397797]
[1751265454047,1.52359716,108140.0,108130.0,0.29397797]
[1751265456855,1.44975862,108140.0,108130.0,0.29397797]
[1751265458857,1.44975862,108140.0,108130.0,0.14604447]
[1751265459058,1.44975862,108140.0,108130.0,0.068]
[1751265459253,1.52359716,108140.0,108130.0,0.068]
[1751265459450,1.73541995,108140.0,108130.0,0.005]
[1751265459758,0.1489472,108120.0,108110.0,0.21577986]
[1751265459961,3.56782199,108120.0,108110.0,0.26232433]
[1751265462458,3.56882199,108120.0,108110.0,0.26632433]
[1751265462656,3.56882199,108120.0,108110.0,0.18827986]
[1751265462956,3.56882199,108120.0,108110.0,0.26632433]
[1751265465064,2.06882199,108120.0,108110.0,0.26632433]
[1751265465757,2.06882199,108120.0,108110.0,0.11836553]
[1751265465961,2.06882199,108120.0,108110.0,0.12136553]
[1751265466158,2.06882199,108120.0,108110.0,0.26932643]
[1751265467665,2.06882199,108120.0,108110.0,0.12136553]
[1751265468262,2.06882199,108120.0,108110.0,0.26932643]
[1751265469066,2.06882199,108120.0,108110.0,0.12136553]
[1751265470962,0.1479609,108110.0,108100.0,0.19311676]
[1751265471167,2.23559972,108110.0,108100.0,0.23010966]
[1751265472469,2.23659972,108110.0,108100.0,0.23610966]
[1751265472670,2.23759972,108110.0,108100.0,0.24010966]
[1751265474161,2.23759972,108110.0,108100.0,0.30560966]
[1751265480467,0.52141603,108110.0,108100.0,0.30560966]
[1751265480771,0.52141603,108110.0,108100.0,0.53963245]
[1751265480974,0.38621603,108110.0,108100.0,0.53963245]
[1751265481279,0.33631603,108110.0,108100.0,0.53963245]
[1751265482372,0.47151603,108110.0,108100.0,0.53963245]
[1751265483677,0.33631603,108110.0,108100.0,0.53963245]
[1751265483979,0.02541603,108110.0,108100.0,0.53963245]
[1751265487384,0.02541603,108110.0,108100.0,0.90043245]
[1751265487578,0.02541603,108110.0,108100.0,0.91488986]
[1751265488290,0.02041603,108110.0,108100.0,1.09989786]
[1751265489185,0.02041603,108110.0,108100.0,0.89647507]
[1751265489387,0.02041603,108110.0,108100.0,1.09989786]
[1751265491687,0.02041603,108110.0,108100.0,0.91488986]
[1751265493688,0.02041603,108110.0,108100.0,0.71146707]
[1751265494287,0.38121603,108110.0,108100.0,0.35066707]
[1751265494788,0.58463882,108110.0,108100.0,0.35066707]
[1751265495190,0.38121603,108110.0,108100.0,0.35066707]
[1751265495489,0.52917693,108110.0,108100.0,0.35066707]
[1751265497490,0.38121603,108110.0,108100.0,0.35066707]
[1751265500392,0.38121603,108110.0,108100.0,0.3659037]
[1751265500989,0.38121603,108110.0,108100.0,0.9347437]
[1751265502389,0.38121603,108110.0,108100.0,0.3659037]
[1751265502688,0.38121603,108110.0,108100.0,0.9347437]
[1751265503892,0.38121603,108110.0,108100.0,1.13816649]
[1751265506097,0.38121603,108110.0,108100.0,1.13776649]
[1751265506799,0.38121603,108110.0,108100.0,1.12330908]
[1751265507097,0.38121603,108110.0,108100.0,1.13776677]
[1751265507797,0.38121603,108110.0,108100.0,1.13770479]
[1751265507798,0.58457684,108110.0,108100.0,1.13770479]
[1751265508198,0.58457684,108110.0,108100.0,1.3410656]
[1751265510000,0.58457684,108110.0,108100.0,1.13770479]
[1751265510900,0.58457684,108110.0,108100.0,1.13710479]
[1751265513600,0.58457684,108110.0,108100.0,0.93374398]
[1751265513803,0.58457684,108110.0,108100.0,1.13710479]
[1751265516301,0.58457684,108110.0,108100.0,0.33300398]
[1751265516502,0.73253774,108110.0,108100.0,0.83708398]
[1751265516701,0.79553774,108110.0,108100.0,0.83708398]
[1751265517605,0.79553774,108110.0,108100.0,1.04044479]
[1751265518501,0.79553774,108110.0,108100.0,1.04040479]
[1751265518702,0.79553774,108110.0,108100.0,0.26980398]
[1751265518903,0.79553774,108110.0,108100.0,0.83688398]
[1751265519207,0.79553774,108110.0,108100.0,1.04024479]
[1751265520607,0.77712171,108110.0,108100.0,1.04024479]
[1751265521308,0.79837066,108110.0,108100.0,1.04024479]
[1751265522109,0.77712171,108110.0,108100.0,1.04024479]
[1751265522407,0.77712171,108110.0,108100.0,1.10174479]
[1751265522710,0.77712171,108110.0,108100.0,0.33130398]
[1751265522906,0.77712171,108110.0,108100.0,0.89826398]
[1751265523308,0.79837058,108110.0,108100.0,0.89826398]
[1751265523513,1.28877849,108110.0,108070.0,0.45198188]
[1751265523710,0.1490568,108040.0,108030.0,0.18482968]
[1751265524005,2.06105923,108040.0,108030.0,0.19884585]
[1751265524406,2.12385923,108040.0,108030.0,0.18482968]
[1751265525109,2.12285923,108040.0,108030.0,0.13492968]
[1751265525310,0.1480841,108020.0,108010.0,0.24120438]
[1751265525497,1.34965753,108020.0,108010.0,0.24120438]
[1751265525699,1.41365753,108020.0,108010.0,0.24120438]
[1751265525902,1.21071979,108020.0,108010.0,0.24120438]
[1751265526314,1.21071979,108020.0,108010.0,0.42140228]
[1751265526502,1.21979259,108020.0,108010.0,0.42140228]
[1751265526702,1.22179259,108020.0,108010.0,0.42240228]
[1751265527311,1.21271979,108020.0,108010.0,0.24220438]
[1751265528101,1.21271979,108020.0,108010.0,0.39030228]
[1751265528306,1.21271979,108020.0,108010.0,0.24220438]
[1751265528705,1.21271979,108020.0,108010.0,0.39030228]
[1751265529104,1.21271979,108020.0,108010.0,0.24220438]
[1751265529305,1.21271979,108020.0,108010.0,0.39030228]
[1751265529701,1.21271979,108020.0,108010.0,0.24220438]
[1751265530400,1.21371979,108020.0,108010.0,0.24220438]
[1751265530799,1.22301192,108020.0,108010.0,0.39030228]
[1751265531199,1.73635979,108020.0,108010.0,0.45250228]
[1751265531406,1.73635979,108020.0,108010.0,0.2122237]
[1751265531813,1.76855979,108020.0,108010.0,0.2122237]
[1751265532315,1.18191979,108020.0,108010.0,0.2122237]
[1751265532609,1.76859979,108020.0,108010.0,0.2122237]
[1751265534514,1.77781878,108020.0,108010.0,0.2122237]
[1751265534713,1.77781878,108020.0,108010.0,0.1500237]
[1751265534911,1.80791878,108020.0,108010.0,0.1500237]
[1751265535613,1.80791878,108020.0,108010.0,0.0019258]
[1751265536608,1.83411662,108020.0,108010.0,0.0019258]
[1751265536814,1.83411662,108020.0,108010.0,0.0323258]
[1751265537014,1.80791878,108020.0,108010.0,0.0323258]
[1751265537210,1.80791878,108020.0,108010.0,0.1500237]
[1751265538521,1.83410588,108020.0,108010.0,0.1500237]
[1751265539317,1.83410588,108020.0,108010.0,0.1822237]
[1751265539522,1.83410588,108020.0,108010.0,0.0341258]
[1751265540424,1.83410588,108020.0,108010.0,0.0019258]
[1751265541725,0.1480979,108010.0,108000.0,0.005]
[1751265541924,0.77538178,108010.0,108000.0,0.005]
[1751265542320,0.97916566,108010.0,108000.0,0.0361]
[1751265542629,0.97916566,108010.0,108000.0,0.005]
[1751265543141,1.00536237,108010.0,108000.0,0.005]
[1751265544024,1.53441849,108010.0,108000.0,0.1541116]
[1751265544225,0.80757849,108010.0,108000.0,0.0371]
[1751265544435,1.53457849,108010.0,108000.0,0.0371]
[1751265545633,0.80757849,108010.0,108000.0,0.1852116]
[1751265545826,1.53465849,108010.0,108000.0,0.1852116]
[1751265546025,1.53465849,108010.0,108000.0,0.2164116]
[1751265546534,0.74487849,108010.0,108000.0,0.2164116]
[1751265547030,1.47199849,108010.0,108000.0,0.2164116]
[1751265547224,0.74487849,108010.0,108000.0,0.2164116]
[1751265547431,1.47191849,108010.0,108000.0,0.2164116]
[1751265547627,1.53341849,108010.0,108000.0,0.2164116]
[1751265547827,1.53641849,108010.0,108000.0,0.1862116]
[1751265548022,1.53641849,108010.0,108000.0,0.0381]
[1751265548423,1.5909127,108010.0,108000.0,0.0381]
[1751265549033,0.8638727,108010.0,108000.0,0.0381]
[1751265549234,1.5910327,108010.0,108000.0,0.1862116]
[1751265549431,0.8638727,108010.0,108000.0,0.0381]
[1751265549730,1.5910327,108010.0,108000.0,0.0381]
[1751265550335,1.62736218,108010.0,108000.0,0.0381]
[1751265550534,1.62736218,108010.0,108000.0,0.007]
[1751265550834,1.53653849,108010.0,108000.0,0.007]
[1751265551236,1.62736218,108010.0,108000.0,0.007]
[1751265551435,0.1481116,108000.0,107990.0,0.15374125]
[1751265551630,0.1481253,107990.0,107980.0,0.17996465]
[1751265551830,1.35880589,107990.0,107980.0,0.21136465]
[1751265552136,1.43240557,107990.0,107980.0,0.21136465]
[1751265552334,1.32610589,107990.0,107980.0,0.21136465]
[1751265552737,1.45490969,107990.0,107980.0,0.22530606]
[1751265553540,1.32610589,107990.0,107980.0,0.22530606]
[1751265553934,1.42502503,107990.0,107980.0,0.22530606]
[1751265554238,1.07439585,107990.0,107980.0,0.27520606]
[1751265554435,1.27825973,107990.0,107980.0,0.27520606]
[1751265554636,1.42638503,107990.0,107980.0,0.27520606]
[1751265555638,0.48591585,107990.0,107980.0,0.27520606]
[1751265555834,0.48591585,107990.0,107980.0,0.46504853]
[1751265556034,0.46748904,107990.0,107980.0,0.26126465]
[1751265556638,0.61561434,107990.0,107980.0,0.26126465]
[1751265556828,0.81939822,107990.0,107980.0,0.26126465]
[1751265557033,0.85129822,107990.0,107980.0,0.26126465]
[1751265557538,0.81939822,107990.0,107980.0,0.29166465]
[1751265557837,0.037039,107970.0,107950.0,0.01670197]
[1751265558038,1.27733426,107960.0,107950.0,0.03072424]
[1751265558236,0.1481802,107950.0,107940.0,0.14879351]
[1751265558436,1.41624184,107950.0,107940.0,0.18069351]
[1751265558736,1.36118079,107950.0,107940.0,0.03249961]
[1751265558934,1.36118079,107950.0,107940.0,0.04690402]
[1751265559133,0.76926079,107950.0,107940.0,0.04690402]
[1751265559334,0.84481692,107950.0,107940.0,0.19509792]
[1751265559534,0.84481692,107950.0,107940.0,0.00059961]
[1751265559535,1.46895692,107950.0,107940.0,0.00059961]
[1751265559837,0.87591692,107950.0,107940.0,0.14879351]
[1751265560029,1.46943692,107950.0,107940.0,0.00059961]
[1751265560235,1.46943692,107950.0,107940.0,0.14879351]
[1751265560540,1.47869612,107950.0,107940.0,0.14879351]
[1751265560742,1.53375717,107950.0,107940.0,0.14879351]
[1751265561041,0.94323717,107950.0,107940.0,0.14879351]
[1751265561241,0.85707612,107950.0,107940.0,0.14879351]
[1751265561539,0.59478059,107950.0,107940.0,0.18159351]
[1751265561836,0.39099671,107950.0,107940.0,0.24349351]
[1751265562141,0.46448904,107950.0,107940.0,0.24349351]
[1751265562842,0.53917691,107950.0,107940.0,0.24349351]
[1751265563045,0.59478059,107950.0,107940.0,0.24349351]
[1751265563243,0.64968016,107950.0,107940.0,0.24349351]
[1751265564140,0.79786036,107950.0,107940.0,0.09529961]
[1751265564337,0.74296079,107950.0,107940.0,0.21259351]
[1751265564542,0.95558059,107950.0,107940.0,0.21259351]
[1751265564842,0.80666947,107950.0,107940.0,0.24559351]
[1751265565846,0.75179671,107950.0,107940.0,0.24559351]
[1751265566352,0.75179671,107950.0,107940.0,0.44937739]
[1751265566553,0.75179671,107950.0,107940.0,0.24559351]
[1751265567251,0.95558059,107950.0,107940.0,0.24559351]
[1751265567750,0.75179671,107950.0,107940.0,0.24559351]
[1751265567937,0.75179671,107950.0,107940.0,0.46367572]
[1751265568141,0.75179671,107950.0,107940.0,0.44937739]
[1751265568956,0.75179671,107950.0,107940.0,0.46375198]
[1751265569155,0.75179671,107950.0,107940.0,0.85281586]
[1751265570050,0.75179671,107950.0,107940.0,0.64903198]
[1751265570544,0.75179671,107950.0,107940.0,1.45105586]
[1751265572754,0.3608,107960.0,107950.0,0.2593093]
[1751265572954,0.41567276,107980.0,107970.0,0.1481527]
[1751265573156,0.77610098,107980.0,107970.0,0.1481527]
[1751265573459,0.7216,107980.0,107970.0,0.41593658]
[1751265574056,0.7216,107980.0,107970.0,0.2121527]
[1751265575456,0.7296,107980.0,107970.0,0.2131527]
[1751265575653,0.7296,107980.0,107970.0,0.41693658]
[1751265575858,0.7296,107980.0,107970.0,0.56065658]
[1751265577057,0.7256,107980.0,107970.0,0.56065658]
[1751265577257,0.7286,107980.0,107970.0,0.3568727]
[1751265578156,0.7286,107980.0,107970.0,0.56065658]
[1751265581659,1.22446676,107980.0,107970.0,0.001]
[1751265581867,0.1852167,107960.0,107940.0,0.25497821]
[1751265582076,0.92538388,107950.0,107940.0,0.28740643]
[1751265582258,1.07356408,107950.0,107940.0,0.31950643]
[1751265582459,1.10456408,107950.0,107940.0,0.00022783]
[1751265582666,1.13676408,107950.0,107940.0,0.14842173]
[1751265582869,1.13676408,107950.0,107940.0,0.00022783]
[1751265583067,1.13776408,107950.0,107940.0,0.00122783]
[1751265583468,1.13776408,107950.0,107940.0,0.14942173]
[1751265584766,0.74352532,107950.0,107940.0,0.14942173]
[1751265585070,0.7246,107950.0,107940.0,0.21512173]
[1751265585471,0.7236,107950.0,107940.0,0.21412173]
[1751265585769,0.7246,107950.0,107940.0,0.21412173]
[1751265588271,0.7246,107950.0,107940.0,0.24692173]
[1751265588566,0.8727801,107950.0,107940.0,0.24692173]
[1751265588774,0.82850046,107950.0,107940.0,0.24692173]
[1751265589162,1.08347314,107950.0,107940.0,0.24692173]
[1751265589466,0.755,107950.0,107940.0,0.24692173]
[1751265590060,0.9031801,107950.0,107940.0,0.24692173]
[1751265590971,1.15815278,107950.0,107940.0,0.24692173]
[1751265594177,1.23299964,107950.0,107940.0,0.24692173]
[1751265598771,1.08481954,107950.0,107940.0,0.24692173]
[1751265598977,0.7246,107950.0,107940.0,0.50189441]
[1751265599179,0.7246,107950.0,107940.0,0.24692173]
[1751265599978,0.7246,107950.0,107940.0,0.39672173]
[1751265603774,1.12775278,107950.0,107940.0,0.24692173]
[1751265603976,0.97957268,107950.0,107940.0,0.44692173]
[1751265604180,1.12775278,107950.0,107940.0,0.44692173]
[1751265604478,1.12775278,107950.0,107940.0,0.41432173]
[1751265604667,1.15785278,107950.0,107940.0,0.41432173]
[1751265605790,1.15785278,107950.0,107940.0,0.44532173]
[1751265606781,0.9028801,107950.0,107940.0,0.44532173]
[1751265606985,1.15785278,107950.0,107940.0,0.44532173]
[1751265607188,0.7246,107950.0,107940.0,0.44532173]
[1751265607892,0.92857147,107950.0,107940.0,0.44532173]
[1751265609187,0.92857147,107950.0,107940.0,1.03928173]
[1751265610495,0.92857147,107950.0,107940.0,0.44532173]
[1751265610696,0.92857147,107950.0,107940.0,1.03876173]
[1751265611290,0.92857147,107950.0,107940.0,1.07566116]
[1751265611489,0.92857147,107950.0,107940.0,1.07518116]
[1751265612385,1.08222627,107950.0,107940.0,0.45122116]
[1751265612695,1.11362627,107950.0,107940.0,0.45122116]
[1751265616296,1.11362627,107950.0,107940.0,0.46570098]
[1751265616500,1.21984616,107950.0,107940.0,0.46570098]
[1751265617600,1.21984616,107950.0,107940.0,0.45122116]
[1751265619396,1.01587469,107950.0,107940.0,0.45122116]
[1751265619598,1.21984616,107950.0,107940.0,0.45122116]
[1751265619797,1.21984616,107950.0,107940.0,0.46570098]
[1751265620000,0.98357469,107950.0,107940.0,0.46570098]
[1751265620196,1.18754616,107950.0,107940.0,0.46570098]
[1751265620905,0.98357469,107950.0,107940.0,0.46570098]
[1751265621105,1.18754616,107950.0,107940.0,0.46570098]
[1751265622205,1.18754616,107950.0,107940.0,0.42880155]
[1751265624199,0.98357469,107950.0,107940.0,0.42880155]
[1751265624400,1.18754616,107950.0,107940.0,0.42880155]
[1751265627306,0.98357469,107950.0,107940.0,0.42880155]
[1751265627509,1.18754616,107950.0,107940.0,0.42880155]
[1751265627709,0.98357469,107950.0,107940.0,0.42880155]
[1751265627911,1.18754616,107950.0,107940.0,0.42880155]
[1751265630613,1.18754616,107950.0,107940.0,0.45980155]
[1751265630913,1.18754616,107950.0,107940.0,0.49670098]
[1751265633016,1.18754616,107950.0,107940.0,0.45980155]
[1751265633718,0.98357469,107950.0,107940.0,0.45980155]
[1751265634017,1.18754616,107950.0,107940.0,0.45980155]
[1751265634405,0.98357469,107950.0,107940.0,0.45980155]
[1751265634606,1.18754616,107950.0,107940.0,0.45980155]
[1751265635611,1.18754616,107950.0,107940.0,0.49670098]
[1751265642410,0.98357469,107950.0,107940.0,0.23712726]
[1751265642615,1.48375469,107950.0,107940.0,0.23712726]
[1751265642922,1.94669811,107950.0,107940.0,0.16013661]
[1751265643219,0.1482075,107930.0,107920.0,0.037826]
[1751265643411,1.66417897,107930.0,107920.0,0.05230825]
[1751265643615,1.73037897,107930.0,107920.0,0.09312172]
[1751265644022,1.5264075,107930.0,107920.0,0.09312172]
[1751265644522,1.5264075,107930.0,107920.0,0.24134292]
[1751265644719,1.5284075,107930.0,107920.0,0.24134292]
[1751265644917,1.73237897,107930.0,107920.0,0.09312172]
[1751265645311,1.73237897,107930.0,107920.0,0.24134292]
[1751265645516,1.73637897,107930.0,107920.0,0.037826]
[1751265645810,1.73637897,107930.0,107920.0,0.00092657]
[1751265646015,1.73637897,107930.0,107920.0,0.01492918]
[1751265646409,1.73637897,107930.0,107920.0,0.00092657]
[1751265648219,1.89229897,107930.0,107920.0,0.00092657]
[1751265649316,1.6883275,107930.0,107920.0,0.00092657]
[1751265649516,1.89229897,107930.0,107920.0,0.00092657]
[1751265659026,1.85999897,107930.0,107920.0,0.14914777]
[1751265659232,1.85999897,107930.0,107920.0,0.18094777]
[1751265659826,1.85979897,107930.0,107920.0,0.18094777]
[1751265660332,1.11287897,107930.0,107920.0,0.18094777]
[1751265660633,1.85979897,107930.0,107920.0,0.18094777]
[1751265661227,1.6554275,107930.0,107920.0,0.18094777]
[1751265661423,1.85939897,107930.0,107920.0,0.18094777]
[1751265664031,1.11287897,107930.0,107920.0,0.03272657]
[1751265664236,1.85907897,107930.0,107920.0,0.03272657]
[1751265666732,1.85907897,107930.0,107920.0,0.18094777]
[1751265667436,1.85907897,107930.0,107920.0,0.03272657]
[1751265667636,1.85907897,107930.0,107920.0,0.18094777]
[1751265668842,1.6551075,107930.0,107920.0,0.18094777]
[1751265669434,1.85907897,107930.0,107920.0,0.18094777]
[1751265670036,1.85779897,107930.0,107920.0,0.18094777]
[1751265670338,1.85779897,107930.0,107920.0,0.21284777]
[1751265671139,1.85791897,107930.0,107920.0,0.21284777]
[1751265671339,1.93490512,107930.0,107920.0,0.21284777]
[1751265671738,1.18986512,107930.0,107920.0,0.21284777]
[1751265671941,1.78790512,107930.0,107920.0,0.21284777]
[1751265672641,1.93570512,107930.0,107920.0,0.06462657]
[1751265673036,1.93570512,107930.0,107920.0,0.03272657]
[1751265675142,1.88070464,107930.0,107920.0,0.03272657]
[1751265675842,1.88070464,107930.0,107920.0,0.18094777]
[1751265676043,1.88070464,107930.0,107920.0,0.03272657]
[1751265677241,1.88070464,107930.0,107920.0,0.18094777]
[1751265677640,1.95419697,107930.0,107920.0,0.18094777]
[1751265677947,1.95419697,107930.0,107920.0,0.03272657]
[1751265678142,1.84900464,107930.0,107920.0,0.18094777]
[1751265678343,1.10176464,107930.0,107920.0,0.21334777]
[1751265678738,1.84900464,107930.0,107920.0,0.21334777]
[1751265679137,1.70015573,107930.0,107920.0,0.21334777]
[1751265679442,1.9041272,107930.0,107920.0,0.21334777]
[1751265680544,1.9041672,107930.0,107920.0,0.21334777]
[1751265682245,1.70019573,107930.0,107920.0,0.21334777]
[1751265682544,1.9041672,107930.0,107920.0,0.21334777]
[1751265682747,1.7550472,107930.0,107920.0,0.21334777]
[1751265683250,1.7550472,107930.0,107920.0,0.06512657]
[1751265683540,1.9348672,107930.0,107920.0,0.21334777]
[1751265683746,1.73089573,107930.0,107920.0,0.21334777]
[1751265683941,1.9348672,107930.0,107920.0,0.21334777]
[1751265684138,1.73089573,107930.0,107920.0,0.21334777]
[1751265684338,1.1877872,107930.0,107920.0,0.21334777]
[1751265684644,1.9345872,107930.0,107920.0,0.21334777]
[1751265685138,1.1877872,107930.0,107920.0,0.21334777]
[1751265685341,1.9347072,107930.0,107920.0,0.21334777]
[1751265689849,2.13898637,107930.0,107920.0,0.21334777]
[1751265692650,1.73073573,107930.0,107920.0,0.21334777]
[1751265692946,2.13898637,107930.0,107920.0,0.21334777]
[1751265693346,1.10191849,107930.0,107920.0,0.43195738]
[1751265693740,1.10191849,107930.0,107920.0,0.22783206]
[1751265695857,1.10186823,107930.0,107920.0,0.22783206]
[1751265696157,1.07988256,107930.0,107920.0,0.22783206]
[1751265696346,1.1015248,107930.0,107920.0,0.22783206]
[1751265696950,1.1015248,107930.0,107920.0,0.21334777]
[1751265697150,0.89744974,107930.0,107920.0,0.21334777]
[1751265697452,1.1015248,107930.0,107920.0,0.21334777]
[1751265698157,1.1015248,107930.0,107920.0,0.2278309]
[1751265698755,1.1015248,107930.0,107920.0,0.21334777]
[1751265699658,1.1015248,107930.0,107920.0,0.06512657]
[1751265699863,1.1319248,107930.0,107920.0,0.21334777]
[1751265700762,1.1319248,107930.0,107920.0,0.06512657]
[1751265701064,1.1319248,107930.0,107920.0,0.21334777]
[1751265701460,1.11028256,107930.0,107920.0,0.06512657]
[1751265701661,1.11028256,107930.0,107920.0,0.03272657]
[1751265701968,0.1482212,107920.0,107910.0,0.0331]
[1751265702168,1.49119626,107920.0,107910.0,0.04758434]
[1751265702469,1.49119626,107920.0,107910.0,0.22611934]
[1751265702768,1.49119626,107920.0,107910.0,0.211635]
[1751265702967,1.49119626,107920.0,107910.0,0.0634]
[1751265703265,1.49419626,107920.0,107910.0,0.211635]
[1751265703468,1.2901212,107920.0,107910.0,0.211635]
[1751265703671,1.49419626,107920.0,107910.0,0.211635]
[1751265704464,1.49419626,107920.0,107910.0,0.0634]
[1751265706166,0.148235,107910.0,107900.0,0.19479713]
[1751265706471,0.74601006,107910.0,107900.0,0.23532121]
[1751265706762,0.95008512,107910.0,107900.0,0.08708361]
[1751265707069,0.95008512,107910.0,107900.0,0.22084733]
[1751265707272,0.95208512,107910.0,107900.0,0.22084733]
[1751265707469,0.95208512,107910.0,107900.0,0.07259863]
[1751265708167,0.95208512,107910.0,107900.0,0.22084733]
[1751265708168,0.543935,107910.0,107900.0,0.22084733]
[1751265708469,0.74901006,107910.0,107900.0,0.22084733]
[1751265708667,0.544935,107910.0,107900.0,0.22084733]
[1751265708971,0.74901006,107910.0,107900.0,0.22084733]
[1751265709168,0.544935,107910.0,107900.0,0.22084733]
[1751265709564,0.71611006,107910.0,107900.0,0.25304733]
[1751265709969,0.512035,107910.0,107900.0,0.25304733]
[1751265710166,0.71611006,107910.0,107900.0,0.25304733]
[1751265710861,0.512035,107910.0,107900.0,0.25304733]
[1751265711073,0.71611006,107910.0,107900.0,0.25304733]
[1751265712871,0.512035,107910.0,107900.0,0.25304733]
[1751265713072,0.71611006,107910.0,107900.0,0.25304733]
[1751265720375,0.512035,107910.0,107900.0,0.25304733]
[1751265720876,0.71611006,107910.0,107900.0,0.25304733]
[1751265721374,0.512035,107910.0,107900.0,0.25304733]
[1751265721674,0.71611006,107910.0,107900.0,0.25304733]
[1751265722080,0.74621006,107910.0,107900.0,0.25304733]
[1751265722876,0.95028512,107910.0,107900.0,0.25304733]
[1751265723072,0.74621006,107910.0,107900.0,0.25304733]
[1751265723274,0.95028512,107910.0,107900.0,0.07259863]
[1751265724771,0.95028512,107910.0,107900.0,0.22084733]
[1751265726074,0.542135,107910.0,107900.0,0.22084733]
[1751265726276,0.74621006,107910.0,107900.0,0.22084733]
[1751265727176,0.542135,107910.0,107900.0,0.22084733]
[1751265727378,0.74621006,107910.0,107900.0,0.22084733]
[1751265728078,0.74621006,107910.0,107900.0,0.25314733]
[1751265729081,0.74621006,107910.0,107900.0,0.26720853]
[1751265729274,0.74621006,107910.0,107900.0,0.25314733]
[1751265729575,0.74621006,107910.0,107900.0,0.10489863]
[1751265729779,0.74621006,107910.0,107900.0,0.25314733]
[1751265731879,0.95048654,107910.0,107900.0,0.25314733]
[1751265732068,0.95048654,107910.0,107900.0,0.26721949]
[1751265732379,0.512035,107910.0,107900.0,0.11897079]
[1751265732570,0.95078654,107910.0,107900.0,0.08667079]
[1751265733079,0.542435,107910.0,107900.0,0.08667079]
[1751265733274,0.95078654,107910.0,107900.0,0.08667079]
[1751265733976,0.32285707,107880.0,107870.0,0.05529572]
[1751265734175,0.037078,107860.0,107840.0,0.12567709]
[1751265734376,0.5571654,107850.0,107840.0,0.08054188]
[1751265734679,1.82242963,107850.0,107840.0,0.28471765]
[1751265735077,1.82242963,107850.0,107840.0,0.08054188]
[1751265735978,1.82265114,107850.0,107840.0,0.08054188]
[1751265736183,2.03449302,107850.0,107840.0,0.08054188]
[1751265736384,2.03449302,107850.0,107840.0,0.06605177]
[1751265736577,2.06499302,107850.0,107840.0,0.06605177]
[1751265736778,2.06199302,107850.0,107840.0,0.06605177]
[1751265737084,2.06499302,107850.0,107840.0,0.06605177]
[1751265737383,2.08609153,107850.0,107840.0,0.0805458]
[1751265738086,2.08609153,107850.0,107840.0,0.06605177]
[1751265738284,2.08609153,107850.0,107840.0,0.08054586]
[1751265738285,2.09021153,107850.0,107840.0,0.08054586]
[1751265739384,2.08989153,107850.0,107840.0,0.06605177]
[1751265739683,2.16502323,107850.0,107840.0,0.06605177]
[1751265741987,2.16402323,107850.0,107840.0,0.06605177]
[1751265742181,2.16502323,107850.0,107840.0,0.06605177]
[1751265743578,2.16502323,107850.0,107840.0,0.09765177]
[1751265744082,2.14392472,107850.0,107840.0,0.09765177]
[1751265744990,1.93860744,107850.0,107840.0,0.09765177]
[1751265745578,0.98349016,107850.0,107840.0,0.09765177]
[1751265745783,1.93788744,107850.0,107840.0,0.09765177]
[1751265746592,1.73349016,107850.0,107840.0,0.09765177]
[1751265746782,2.14228472,107850.0,107840.0,0.09765177]
[1751265750492,1.39228472,107850.0,107840.0,0.09765177]
[1751265750693,2.11038472,107850.0,107840.0,0.09765177]
[1751265751784,1.51242472,107850.0,107840.0,0.09765177]
[1751265751991,2.11042472,107850.0,107840.0,0.09765177]
[1751265752497,0.95299016,107850.0,107840.0,0.09765177]
[1751265752792,1.90542744,107850.0,107840.0,0.09765177]
[1751265753190,2.10982472,107850.0,107840.0,0.09765177]
[1751265753592,2.14062472,107850.0,107840.0,0.09765177]
[1751265753894,1.73183016,107850.0,107840.0,0.09765177]
[1751265754093,2.14062472,107850.0,107840.0,0.09765177]
[1751265754587,2.14110472,107850.0,107840.0,0.09765177]
[1751265756301,2.16199686,107850.0,107840.0,0.09765177]
[1751265757594,1.0046823,107850.0,107840.0,0.09765177]
[1751265757789,1.93710744,107850.0,107840.0,0.09765177]
[1751265758192,1.18818744,107850.0,107840.0,0.09765177]
[1751265758393,1.93698744,107850.0,107840.0,0.09765177]
[1751265758593,2.14130472,107850.0,107840.0,0.09765177]
[1751265758899,2.16220825,107850.0,107840.0,0.09765177]
[1751265759598,2.16204825,107850.0,107840.0,0.09765177]
[1751265759900,2.16236825,107850.0,107840.0,0.09765177]
[1751265760298,2.16228825,107850.0,107840.0,0.09765177]
[1751265762604,2.16228825,107850.0,107840.0,0.033]
[1751265762801,2.19458825,107850.0,107840.0,0.033]
[1751265764806,1.44578825,107850.0,107840.0,0.033]
[1751265765104,2.19346825,107850.0,107840.0,0.033]
[1751265765304,2.19346825,107850.0,107840.0,0.04749445]
[1751265765597,2.19326825,107850.0,107840.0,0.04749445]
[1751265766300,2.19326825,107850.0,107840.0,0.01449445]
[1751265766501,2.22486825,107850.0,107840.0,0.01449445]